[Event "4th Tata Steel India Blitz Women 2022"]
[Site "Kolkota"]
[Date "2022.12.03"]
[Round "3.4"]
[White "Vaishali, Rameshbabu"]
[Black "Kulkarni Bhakti"]
[Result "1-0"]
[ECO "D02"]
[WhiteElo "2454"]
[BlackElo "2359"]
[Annotator "TA"]
[PlyCount "47"]
[EventDate "2022.11.29"]
[EventType "tourn"]
[EventCountry "IND"]
[SourceTitle "playchess.com"]
[Source "ChessBase"]
[SourceQuality "1"]
[TimeControl "180+2"]

{[%evp 17,47,-2,0,-10,-12,-7,-18,-18,-10,-18,-13,0,-16,-157,-154,-164,-156,-158,-154,-308,-283,-293,-152,-164,-77,-171,1964,-8,29997,29998,29998,29999]} 1. d4 {[%emt 0:00:03] Mekhitarian,Krikor Sevag} d5 {[%emt 0:00:07]} 2. Nf3 {[%emt 0:00:03]} Nf6 {[%emt 0:00:03]} 3. Bf4 {[%emt 0:00:02]} e6 {[%emt 0:00:02]} 4. e3 {[%emt 0:00:02]} Bd6 {[%emt 0:00:03]} 5. Bg3 {[%emt 0:00:09]} c5 {[%emt 0:00:03]} 6. Nbd2 {[%emt 0:00:02]} O-O {[%emt 0:00:03]} 7. c3 {[%emt 0:00:04]} b6 {[%emt 0:00:02]} 8. Bd3 {[%emt 0:00:11]} Bb7 {[%emt 0:00:02]} 9. Ne5 {[%emt 0:00:11]} Nc6 {[%emt 0:00:16]} 10. f4 {[%emt 0:00:11] D02: 1 d4 d5 2 Nf3 sidelines, including 2...Nf6 3 g3 and 2...Nf6 3 Bf4.} Ne7 {[%emt 0:00:19]} 11. Qf3 {[%emt 0:00:47] Prevents Ne4. 11.Qb1 is more advanced technology.} Nf5 {[%emt 0:00:14] Inhibits Bh4.} 12. Bf2 {[%emt 0:00:15] The position is equal.} Be7 {[%emt 0:00:04]} 13. g4 {[%emt 0:00:55]} Nd6 {[%emt 0:00:02]} 14. g5 {[%emt 0:00:13]} Nfe4 {[%emt 0:00:02] [#]} 15. Bxe4 $146 {[%emt 0:00:16]} (15. Qe2 $11) ({Predecessor:} 15. O-O-O c4 16. Bc2 b5 17. Qh3 b4 18. Nxe4 dxe4 19. Be1 Bd5 20. Rg1 b3 21. axb3 cxb3 {0-1 (31) Karjakin,S (2769)-Adams,M (2744) Wijk aan Zee 2016 CBM 171 [Mekhitarian,Krikor Sevag]}) 15... dxe4 $17 {[%emt 0:00:10]} (15... Nxe4 16. Rg1 $15) 16. Qg4 {[%emt 0:00:03]} cxd4 {[%emt 0:00:09]} 17. cxd4 {[%emt 0:00:01]} Rc8 {[%emt 0:00:12] aiming for ...Ba6.} 18. h4 $2 {[%emt 0:00:03]} (18. O-O $17) 18... Rc2 {[%emt 0:00:19]} 19. h5 {[%emt 0:00:02][%cal Bh4h5,Bh5g6][%mdl 32]} b5 {[%emt 0:00:51]} (19... Rxb2 20. g6 Qc8 21. h6 fxg6 22. hxg7 $17) ({Black should try} 19... Qc8 $19 {Threatens to win with ...Nf5.} 20. g6 h6 21. gxf7+ Nxf7) 20. g6 {[%emt 0:00:03]} Qa5 {[%emt 0:00:08] Inhibits h6.} (20... Rxb2 21. h6 (21. gxf7+ $2 Nxf7 22. h6 g5 $19) 21... fxg6 22. Qxe6+ Rf7 23. O-O-O $11 (23. Nxf7 Nxf7 24. Rb1 Bd5 $17)) (20... Nf5 $19 {is more deadly.} 21. gxf7+ Rxf7 22. Nxf7 Kxf7) 21. Rd1 {[%emt 0:00:01] h6 is the strong threat.} Nc4 $4 {[%emt 0:00:11][%mdl 8192] [#] Against h6} (21... Qxa2 22. h6 (22. gxf7+ Rxf7 23. h6 g6 $11) 22... fxg6 23. hxg7 $16 (23. Qh3 $2 Rf5 $19)) (21... Nf5 $19 22. gxf7+ Rxf7) 22. gxf7+ $2 {[%emt 0:00:02]} ({White must play} 22. h6 $1 $18 {Intending gxh7+ and mate.} Qxd2+ (22... gxh6 23. gxh7+) 23. Rxd2 Rc1+ 24. Ke2) 22... Kh8 {[%emt 0:00:01][%mdl 8192] [#]} (22... Rxf7 $11 23. Nxf7 Kxf7) 23. Ng6+ $1 {[%emt 0:00:02][%mdl 512]} hxg6 {[%emt 0:00:05]} 24. hxg6+ {[%emt 0:00:01] What a bad dream for Black.   Weighted Error Value: White=0.82/Black=0.63} 1-0

[Event "4th Tata Steel India Blitz Women 2022"]
[Site "Kolkota"]
[Date "2022.12.03"]
[Round "3.5"]
[White "Kiolbasa, Oliwia"]
[Black "Dzagnidze, Nana"]
[Result "1-0"]
[ECO "B92"]
[WhiteElo "2406"]
[BlackElo "2517"]
[Annotator "TA"]
[PlyCount "105"]
[EventDate "2022.11.29"]
[EventType "tourn"]
[EventCountry "IND"]
[SourceTitle "playchess.com"]
[Source "ChessBase"]
[SourceQuality "1"]
[TimeControl "180+2"]

{[%evp 17,105,38,58,55,53,35,59,22,31,-23,56,52,81,67,64,22,38,39,43,40,55,-87,-85,-89,-72,-86,-95,-111,-111,-112,-107,-125,-107,-99,-68,-122,-130,-129,-112,-111,-106,-109,-104,-129,-108,-129,-125,-144,-123,-161,-152,-157,-136,-206,-202,-183,-150,-145,-140,-135,-107,-124,-115,-112,-107,-348,-107,-107,-108,-108,-51,-108,-77,-108,-8,-8,-8,-8,0,-8,0,0,0,-8,0,0,0,0,0,-8]} 1. e4 {[%emt 0:00:01]} c5 {[%emt 0:00:01]} 2. Nf3 {[%emt 0:00:01][%cal Bg1f3,Bf3d4,Bd4b3,Bb3d2,Bd2c4,Bc4e3,Be3f5][%mdl 32]} d6 {[%emt 0:00:01]} 3. d4 {[%emt 0:00:02]} cxd4 {[%emt 0:00:02]} 4. Nxd4 {[%emt 0:00:02]} Nf6 {[%emt 0:00:01]} 5. Nc3 {[%emt 0:00:01]} a6 {[%emt 0:00:01]} 6. Be2 {[%emt 0:00:07]} e5 {[%emt 0:00:03]} 7. Nb3 {[%emt 0:00:00]} Be7 {[%emt 0:00:02]} 8. Bg5 {[%emt 0:00:02]} Nbd7 {[%emt 0:00:08]} 9. a4 {[%emt 0:00:14]} b6 {[%emt 0:00:02]} 10. Nd2 {[%emt 0:00:17] B92: Sicilian Najdorf: 6 Be2.} Bb7 {[%emt 0:00:03]} 11. Nc4 {[%emt 0:00:01]} Qc7 {[%emt 0:00:09]} 12. f3 {[%emt 0:00:25] White is slightly better.} O-O {[%emt 0:00:22][%cal Od6d5]} 13. O-O {[%emt 0:00:05]} (13. Qd2 $14) 13... Rfe8 {[%emt 0:00:10]} ({Better is} 13... b5 $1 $11 14. axb5 axb5) 14. Ne3 $14 {[%emt 0:00:16]} Rac8 {[%emt 0:00:09]} 15. Nf5 {[%emt 0:00:23]} Bf8 {[%emt 0:00:03] [#]} 16. Qd2 $146 {[%emt 0:00:01] White has more active pieces.} ({Predecessor:} 16. Kh1 g6 17. Ne3 Be7 18. Bh6 Bf8 19. Bxf8 Kxf8 20. Bc4 Kg7 21. Ba2 Nc5 22. Qd2 {1-0 (49) Krysa,L (2527)-Gulkov,I (2358) Chess.com INT 2021}) 16... h6 {[%emt 0:00:45]} 17. Be3 {[%emt 0:00:05]} Nc5 {[%emt 0:00:12][%cal Od6d5]} 18. Rad1 {[%emt 0:00:07]} Red8 {[%emt 0:00:06]} 19. Bf2 {[%emt 0:00:07]} (19. Bc4 $1 $14 {stays ahead.}) 19... d5 $17 {[%emt 0:00:19]} 20. exd5 {[%emt 0:00:26]} Nxd5 {[%emt 0:00:02]} 21. Nxd5 {[%emt 0:00:10]} Rxd5 {[%emt 0:00:04]} 22. Qc1 {[%emt 0:00:25]} Rxd1 {[%emt 0:00:14]} 23. Rxd1 {[%emt 0:00:02]} Nxa4 {[%emt 0:00:02]} 24. c3 {[%emt 0:00:08]} Nc5 {[%emt 0:00:06]} 25. Qd2 {[%emt 0:00:07]} Ne6 {[%emt 0:00:04]} 26. Bd3 {[%emt 0:00:04]} ({White should play} 26. Qd7 $15) 26... Rd8 {[%emt 0:00:09]} 27. Qe1 {[%emt 0:00:08]} Bc5 {[%emt 0:00:11]} 28. Bc2 {[%emt 0:00:03]} Rxd1 {[%emt 0:00:13]} 29. Bxd1 {[%emt 0:00:02]} h5 {[%emt 0:00:06]} 30. Bc2 {[%emt 0:00:04]} Bxf2+ {[%emt 0:00:04]} 31. Qxf2 {[%emt 0:00:03]} g6 {[%emt 0:00:02]} 32. Ng3 {[%emt 0:00:03]} Qd6 {[%emt 0:00:04]} 33. Qe2 {[%emt 0:00:02]} Nf4 {[%emt 0:00:02]} 34. Qe3 {[%emt 0:00:02]} Kg7 {[%emt 0:00:03]} 35. Ne4 {[%emt 0:00:02]} (35. Nf1 $17) 35... Bxe4 $19 {[%emt 0:00:01]} 36. fxe4 {[%emt 0:00:02][%mdl 4096] Endgame KQB-KQN} b5 {[%emt 0:00:02]} 37. g3 {[%emt 0:00:02]} Ne6 {[%emt 0:00:01]} 38. Bb3 {[%emt 0:00:01]} Qc5 {[%emt 0:00:02]} 39. Kf2 {[%emt 0:00:02]} Qxe3+ {[%emt 0:00:03]} 40. Kxe3 $17 {[%emt 0:00:01] KB-KN} Nc5 {[%emt 0:00:02]} 41. Bc2 {[%emt 0:00:03] [#]} (41. Bd5 $17) 41... a5 $2 {[%emt 0:00:02]} (41... Na4 $1 $19 42. Bxa4 bxa4) 42. b4 {[%emt 0:00:02]} axb4 {[%emt 0:00:02]} 43. cxb4 {[%emt 0:00:00]} Nb7 {[%emt 0:00:00]} (43... Ne6 $17 44. Bd3 Nd4) 44. Bb3 {[%emt 0:00:03]} (44. Bd3 $15) 44... Nd6 {[%emt 0:00:02]} 45. Bd5 {[%emt 0:00:01]} f5 {[%emt 0:00:01]} (45... Ne8 $17 46. Bb3 Nc7) 46. exf5 $11 {[%emt 0:00:04] The position is equal.} gxf5 {[%emt 0:00:01]} 47. h4 {[%emt 0:00:05]} Kf6 48. Bf3 {[%emt 0:00:00]} Kg6 {[%emt 0:00:11][%cal Od6e4]} 49. Bc6 {[%emt 0:00:01]} Kf6 {[%emt 0:00:02]} 50. Bf3 {[%emt 0:00:02]} Nc4+ {[%emt 0:00:02]} 51. Ke2 {[%emt 0:00:01]} Kg6 {[%emt 0:00:01]} 52. Bc6 {[%emt 0:00:02]} Nd6 {[%emt 0:00:03]} 53. Ke3 {[%emt 0:00:01][%mdl 32768] White happily takes the draw.   Weighted Error Value: White=0.22 (precise) /Black=0.21 (precise) . Sensor Board Error (Ke4/e5)?} 1-0

[Event "4th Tata Steel India Blitz Women 2022"]
[Site "Kolkota"]
[Date "2022.12.03"]
[Round "4.1"]
[White "Muzychuk, Mariya"]
[Black "Savitha Shri B"]
[Result "1-0"]
[ECO "B25"]
[WhiteElo "2528"]
[BlackElo "2411"]
[Annotator "TA"]
[PlyCount "41"]
[EventDate "2022.11.29"]
[EventType "tourn"]
[EventCountry "IND"]
[SourceTitle "playchess.com"]
[Source "ChessBase"]
[SourceQuality "1"]
[TimeControl "180+2"]

{[%evp 14,40,-4,0,47,41,107,69,122,112,95,110,149,141,160,99,91,39,85,57,72,42,136,-7,-68,-77,689,658,29999]} 1. e4 {[%emt 0:00:00]} c5 {[%emt 0:00:01]} 2. Nc3 {[%emt 0:00:01]} d6 {[%emt 0:00:04]} 3. g3 {[%emt 0:00:01]} g6 {[%emt 0:00:01]} 4. Bg2 {[%emt 0:00:00]} Bg7 {[%emt 0:00:01]} 5. d3 {[%emt 0:00:01]} Nf6 {[%emt 0:00:02]} 6. f4 {[%emt 0:00:02]} O-O {[%emt 0:00:02] is recently more successful than 6...Nc6.} 7. Nf3 {[%emt 0:00:01]} Nc6 {[%emt 0:00:01]} 8. O-O {[%emt 0:00:02]} e5 {[%emt 0:00:11] B25: Closed Sicilian: 3 g3, lines without early Be3.} (8... Rb8 $11 {was preferrable.}) 9. f5 $14 {[%emt 0:00:05]} Qb6 {[%emt 0:01:00]} ({Black should try} 9... gxf5 $14 10. exf5 h6) 10. Kh1 {[%emt 0:00:09] [#]} gxf5 $146 {[%emt 0:00:17]} (10... h6 $14) ({Predecessor:} 10... Ne7 11. Nh4 gxf5 12. Nxf5 Nxf5 13. exf5 Qb4 14. Ne4 d5 15. Nxf6+ Bxf6 16. c3 Qb6 17. Bxd5 Rd8 18. c4 Bd7 19. Qh5 Be8 20. Bg5 Rd6 21. g4 Bc6 22. Qxf7+ {1-0 (22) Hannebauer,T (2154)-Zur,J (1848) Berlin 2005}) 11. Nh4 $16 {[%emt 0:00:07]} f4 {[%emt 0:00:07]} 12. gxf4 {[%emt 0:00:05]} Bg4 {[%emt 0:00:01]} 13. Qe1 {[%emt 0:00:17]} Kh8 {[%emt 0:00:09]} 14. Qg3 {[%emt 0:00:05]} (14. fxe5 $142 dxe5 15. Bg5) 14... Nd4 {[%emt 0:00:19]} 15. Rf2 {[%emt 0:00:09]} (15. fxe5 $16 dxe5 16. Bg5 (16. Qxe5 Nxc2 17. Rb1 Nd4 $11) (16. Rxf6 Bxf6 17. Qxg4 Rg8 $16)) 15... Rg8 {[%emt 0:00:05]} (15... exf4 $14 {is more appropriate.} 16. Qxf4 Bd7) 16. fxe5 {[%emt 0:00:12]} dxe5 {[%emt 0:00:01]} 17. Bg5 $1 {[%emt 0:00:02] Strongly threatening Raf1.} ({Stronger than} 17. Qxe5 Nh5 18. Qg5 Bf6 19. Rxf6 Nxf6 $17) 17... h6 {[%emt 0:00:14] [#]} (17... Qxb2 $14 18. Rc1 Bh5) 18. Bxf6 {[%emt 0:00:15]} (18. Ng6+ $1 $16 {[%mdl 512]} fxg6 19. Bxf6 Qxb2 20. Raf1 Qxc3 21. Qxg4) 18... Bxf6 $11 {[%emt 0:00:02]} 19. Nd5 $1 {[%emt 0:00:00][%csl LRb6,LRf6]} Bxh4 {[%emt 0:00:05][%mdl 8192]} (19... Qxb2 $17 20. Rxf6 Qxa1+ 21. Rf1 Qxf1+ 22. Bxf1 {[#]} Bf3+ $1 23. Qxf3 Nxf3 24. Nxf3 Raf8) 20. Qxh4 $18 {[%emt 0:00:05]} Qd8 {[%emt 0:00:07]} 21. Qxh6# {[%emt 0:00:02] Weighted Error Value: White=0.20 (precise) /Black=1.08} 1-0

[Event "4th Tata Steel India Blitz Women 2022"]
[Site "Kolkota"]
[Date "2022.12.03"]
[Round "4.2"]
[White "Muzychuk, Anna"]
[Black "Vaishali, Rameshbabu"]
[Result "1-0"]
[ECO "B66"]
[WhiteElo "2525"]
[BlackElo "2454"]
[Annotator "TA"]
[PlyCount "101"]
[EventDate "2022.11.29"]
[EventType "tourn"]
[EventCountry "IND"]
[SourceTitle "playchess.com"]
[Source "ChessBase"]
[SourceQuality "1"]
[TimeControl "180+2"]

{[%evp 16,101,43,43,36,40,43,44,45,41,44,39,62,19,69,56,59,41,55,53,58,61,65,55,86,36,85,47,91,77,66,77,83,77,94,71,76,75,141,137,180,120,130,123,179,155,192,162,229,174,258,238,248,246,258,233,283,283,268,256,400,383,764,762,731,724,932,706,695,692,654,618,2635,825,29968,29969,29969,29970,29969,29970,29964,5479,29972,29973,29973,29973,5820,4901]} 1. e4 {[%emt 0:00:01]} c5 {[%emt 0:00:03]} 2. Nf3 {[%emt 0:00:01]} d6 {[%emt 0:00:01]} 3. d4 {[%emt 0:00:02]} cxd4 {[%emt 0:00:02]} 4. Nxd4 {[%emt 0:00:00]} Nf6 {[%emt 0:00:01]} 5. Nc3 {[%emt 0:00:01]} Nc6 {[%emt 0:00:02]} 6. Bg5 {[%emt 0:00:04]} e6 {[%emt 0:00:02]} 7. Qd2 {[%emt 0:00:01]} a6 {[%emt 0:00:03]} 8. O-O-O {[%emt 0:00:03]} Be7 {[%emt 0:00:02]} 9. Bxf6 {[%emt 0:00:03]} gxf6 {[%emt 0:00:04] B66: Sicilian: Richter-Rauzer: 7...a6 8 0-0-0 h6.} 10. f4 {[%emt 0:00:03][%cal Bf2f4,Bf4f5][%mdl 32]} Nxd4 {[%emt 0:00:06]} 11. Qxd4 {[%emt 0:00:01]} Qa5 {[%emt 0:00:02] White is slightly better.} 12. Be2 {[%emt 0:00:08][%cal Of4f5]} Qc5 {[%emt 0:00:10]} 13. Qd2 {[%emt 0:00:07][%cal Of4f5]} b5 {[%emt 0:00:17] [#]} 14. Bf3 $146 {[%emt 0:00:30][%cal Of4f5]} (14. f5 {looks sharper.} Bd7 15. Bh5 b4 16. fxe6 bxc3 17. exd7+ Kxd7 18. Qd5) ({Predecessor:} 14. Kb1 Bb7 15. Bf3 O-O-O 16. Rhe1 f5 17. exf5 Bxf3 18. gxf3 Qxf5 19. a4 Rd7 20. Nxb5 {1-0 (35) Vuelban,V (2271)-Esposti,F (2101) Porto San Giorgio 2019}) 14... Bb7 {[%emt 0:00:10]} ({Black should try} 14... b4 $11 15. Ne2 a5) 15. f5 {[%emt 0:00:17]} b4 {[%emt 0:01:06]} 16. Ne2 {[%emt 0:00:12]} e5 $1 {[%emt 0:00:02]} 17. Kb1 {[%emt 0:00:11]} a5 {[%emt 0:00:02]} 18. c3 {[%emt 0:00:11]} Bc6 {[%emt 0:00:47]} 19. Rc1 {[%emt 0:00:36]} Qb6 {[%emt 0:00:02]} 20. Rhd1 {[%emt 0:00:37]} (20. Qh6 $16) 20... Ba4 {[%emt 0:00:21]} (20... b3 $14) 21. Re1 {[%emt 0:00:04]} Kd7 {[%emt 0:00:06]} 22. Ng3 {[%emt 0:00:07]} bxc3 {[%emt 0:00:05]} 23. Rxc3 {[%emt 0:00:03]} (23. Qxc3 d5 24. Bd1 (24. exd5 Rhc8 $15) 24... Bxd1 25. Rexd1 d4 $11) 23... Rhc8 {[%emt 0:00:02]} 24. Ne2 {[%emt 0:00:06]} Bb5 {[%emt 0:00:05]} 25. Rxc8 {The board is on fire.} (25. Rec1 {is more complex.} Qb7 26. Ka1 a4 27. Bh5) 25... Rxc8 {[%emt 0:00:01]} 26. Nc3 {[%emt 0:00:04] Prevents d5.} Bc4 {[%emt 0:00:05]} (26... Bc6 $142) 27. Be2 $16 {[%emt 0:00:02]} Bxe2 {[%emt 0:00:03]} 28. Rxe2 {[%emt 0:00:02]} (28. Nd5 $18 Qc6 29. Qxe2) 28... Bd8 {[%emt 0:00:02]} 29. a3 {[%emt 0:00:06]} Qc5 {[%emt 0:00:03]} (29... a4 $16) 30. Qc2 {[%emt 0:00:06]} Rb8 {[%emt 0:00:01]} 31. Ka1 {[%emt 0:00:04]} Bb6 {[%emt 0:00:02]} (31... Qc4 $142 32. Rd2 h6) 32. Rd2 {[%emt 0:00:01]} Qc6 {[%emt 0:00:01]} (32... Rc8 $142 33. Qb3 Ke8) 33. Nd5 $18 {[%emt 0:00:03]} Qxc2 34. Rxc2 {[%emt 0:00:01][%mdl 4096] Endgame KRB-KRN} ({Don't take} 34. Nxf6+ $6 Ke7 35. Nd5+ (35. Rxc2 $2 Kxf6 36. h4 Rg8 $19) 35... Kf8 36. Rxc2 Bd4) 34... Bd4 {[%emt 0:00:04]} 35. Nxf6+ {[%emt 0:00:01]} Kd8 {[%emt 0:00:01]} 36. Ka2 {[%emt 0:00:02] Against Rb3} ({Much less strong is} 36. Nxh7 $6 Rb3 37. Ka2 Re3 $18) 36... a4 {[%emt 0:00:01]} 37. Nxh7 {[%emt 0:00:03] Nf6 is the strong threat.} Rb3 {[%emt 0:00:01]} (37... Ke7 $142 38. g4 d5 39. exd5 e4) 38. Nf6 {[%emt 0:00:02] [#] Black must now prevent g4.} Re3 $2 {[%emt 0:00:03]} (38... Ke7) 39. h4 {[%emt 0:00:05]} Re1 {[%emt 0:00:02]} 40. g4 {[%emt 0:00:03]} d5 {[%emt 0:00:05]} 41. Nxd5 {[%emt 0:00:06]} ({Less strong is} 41. exd5 e4 42. Nh5 Be5 $16) 41... Rxe4 {[%emt 0:00:01]} 42. Rg2 {[%emt 0:00:03] [#] Threatens to win with h5.} Re1 {[%emt 0:00:03]} 43. g5 {[%emt 0:00:01] Hoping for h5.} Ke8 {[%emt 0:00:02]} 44. g6 {[%emt 0:00:01]} (44. h5 $142 e4 45. f6) 44... fxg6 {[%emt 0:00:02]} 45. fxg6 {[%emt 0:00:00]} e4 {[%emt 0:00:02]} 46. g7 {[%emt 0:00:01]} Bxg7 47. Rxg7 {[%emt 0:00:00]} Kf8 {[%emt 0:00:05]} 48. Rg3 {[%emt 0:00:02]} (48. Rg4 $142 e3 49. Nc3 Ke7 50. Rxa4 Kd7 51. Re4 Rh1 52. a4 Rh3 53. a5) 48... Kf7 {[%emt 0:00:01]} 49. Re3 {[%emt 0:00:01]} Rd1 {[%emt 0:00:01]} 50. Nc3 {[%emt 0:00:01]} Rd2 {[%emt 0:00:01]} 51. Rxe4 {[%emt 0:00:01] Weighted Error Value: White=0.17 (very precise) /Black=0.38} 1-0

[Event "4th Tata Steel India Blitz Women 2022"]
[Site "Kolkota"]
[Date "2022.12.03"]
[Round "4.3"]
[White "Kulkarni Bhakti"]
[Black "Kiolbasa, Oliwia"]
[Result "0-1"]
[ECO "D02"]
[WhiteElo "2359"]
[BlackElo "2406"]
[Annotator "TA"]
[PlyCount "53"]
[EventDate "2022.11.29"]
[EventType "tourn"]
[EventCountry "IND"]
[SourceTitle "playchess.com"]
[Source "ChessBase"]
[SourceQuality "1"]
[TimeControl "180+2"]

{[%evp 9,53,0,4,6,0,-8,-2,-2,-4,-1,-10,-33,-29,-50,-88,-71,-39,-191,-53,-295,-283,-281,-287,-649,-646,-648,-608,-605,-620,-754,-753,-710,-624,-579,-366,-479,-455,-480,-426,-428,-423,-429,-422,-408,-418,-389]} 1. d4 {[%emt 0:00:02]} d5 {[%emt 0:00:01]} 2. Nf3 {[%emt 0:00:01]} Nf6 {[%emt 0:00:01]} 3. c3 {[%emt 0:00:02]} e6 {[%emt 0:00:05]} 4. Bf4 {[%emt 0:00:03]} c5 {[%emt 0:00:07]} 5. e3 {[%emt 0:00:18]} Bd6 {[%emt 0:00:05]} 6. Nbd2 {[%emt 0:00:04] D02: 1 d4 d5 2 Nf3 sidelines, including 2...Nf6 3 g3 and 2...Nf6 3 Bf4.} O-O {[%emt 0:00:20]} 7. Bg3 {[%emt 0:00:03]} Qc7 {[%emt 0:00:02]} 8. Ne5 {[%emt 0:00:49] The position is equal.} b6 {[%emt 0:00:16]} (8... c4 {simplifies} 9. Be2 Nbd7 10. Nxd7 Bxd7 11. Bxd6 Qxd6 12. a4 a6) 9. Bd3 {[%emt 0:00:08] 9.f4 is more fashionable.} Ba6 {[%emt 0:00:05]} 10. Bc2 {[%emt 0:00:21] [#]} Rc8 $146 {[%emt 0:00:16]} ({Predecessor:} 10... Nfd7 11. f4 f5 12. Bh4 Nc6 13. g4 Ndxe5 14. fxe5 Be7 15. Bf2 cxd4 16. exd4 Nxe5 17. gxf5 exf5 {1-0 (44) Duda,J (2757)-Le,T (2501) Chess.com INT 2020}) 11. h4 {[%emt 0:00:14]} Nc6 {[%emt 0:00:06]} 12. Ndf3 {[%emt 0:00:40]} Ne4 {[%emt 0:00:15]} (12... cxd4 {feels hotter.} 13. exd4 Ne4 14. Ng5 Bxe5 15. dxe5 Nxg3 16. Bxh7+ Kf8) 13. Bh2 $2 {[%emt 0:00:12] [#]} ({White should try} 13. Ng5 $15) 13... f6 {[%emt 0:00:16]} (13... cxd4 $1 $19 14. Nxc6 dxc3 15. Bxd6 Qxc6 16. Bxe4 cxb2 17. Bxh7+ Kxh7 18. Qb1+ Kg8 19. Qxb2 Qxd6) 14. Nd3 $2 {[%emt 0:00:18]} (14. Nxc6 $15 Bxh2 15. Nxh2) 14... Bxh2 $19 {[%emt 0:00:04]} 15. Rxh2 {[%emt 0:00:06]} cxd4 {[%emt 0:00:03]} 16. cxd4 {[%emt 0:00:10] [#]} (16. Nf4 dxe3 17. fxe3) 16... Nxd4 $1 {[%emt 0:00:08][%mdl 512]} 17. exd4 {[%emt 0:00:01]} Qxc2 {[%emt 0:00:02]} 18. Qxc2 {[%emt 0:00:02]} Rxc2 {[%emt 0:00:02][%cal Bc8c2,Bc2e2,Be2f2][%mdl 32]} 19. Nb4 {[%emt 0:00:01]} Re2+ {[%emt 0:00:02]} ({Stronger than} 19... Rxf2 20. Nxa6 Rc8 21. Nb4 $17) 20. Kf1 {[%emt 0:00:01]} Rxf2+ {[%emt 0:00:05]} 21. Kg1 {[%emt 0:00:01]} Bb7 {[%emt 0:00:11]} 22. b3 {[%emt 0:00:01]} Rc8 {[%emt 0:00:06] Strongly threatening ...Rc3.} 23. Ne1 {[%emt 0:00:05]} a5 {[%emt 0:00:08]} 24. Nbd3 {[%emt 0:00:01]} Rd2 {[%emt 0:00:01] aiming for ...Ng3.} 25. g4 {[%emt 0:00:04]} Rxh2 {[%emt 0:00:08]} 26. Kxh2 {[%emt 0:00:01]} Ba6 {[%emt 0:00:01]} 27. Rc1 {[%emt 0:00:05] Weighted Error Value: White=0.80/Black=0.30} 0-1

[Event "4th Tata Steel India Blitz Women 2022"]
[Site "Kolkota"]
[Date "2022.12.03"]
[Round "4.4"]
[White "Dzagnidze, Nana"]
[Black "Ushenina, Anna"]
[Result "0-1"]
[ECO "D35"]
[WhiteElo "2517"]
[BlackElo "2454"]
[Annotator "TA"]
[PlyCount "54"]
[EventDate "2022.11.29"]
[EventType "tourn"]
[EventCountry "IND"]
[SourceTitle "playchess.com"]
[Source "ChessBase"]
[SourceQuality "1"]
[TimeControl "180+2"]

{[%evp 13,54,29,27,0,0,-1,0,-9,-2,-17,-13,-9,-10,-22,-25,-29,-12,-95,-93,-149,-162,-207,-205,-206,-217,-200,-198,-210,-86,-186,-39,-66,-3,-71,-25,-681,-681,-762,-763,-822,-804,-803,-799]} 1. c4 {[%emt 0:00:02]} e6 {[%emt 0:00:02]} 2. Nc3 {[%emt 0:00:04]} d5 {[%emt 0:00:01]} 3. d4 {[%emt 0:00:02]} Be7 {[%emt 0:00:01]} 4. cxd5 {[%emt 0:00:04]} exd5 {[%emt 0:00:02]} 5. Bf4 {[%emt 0:00:03]} Nf6 {[%emt 0:00:01]} 6. e3 {[%emt 0:00:01]} Bf5 $1 {[%emt 0:00:01][%mdl 4] is now more promising than 6...0-0.} 7. Qb3 {[%emt 0:00:18]} Nc6 {[%emt 0:00:02]} 8. Rc1 {[%emt 0:00:10] D35: Queen's Gambit Declined: Exchange Variation.} Na5 {[%emt 0:00:03]} 9. Qd1 {[%emt 0:00:13]} c6 {[%emt 0:00:05]} 10. Nf3 {[%emt 0:00:04] The position is equal.} O-O {[%emt 0:00:02] [#]} 11. Be2 $146 {[%emt 0:00:13]} ({Predecessor:} 11. Ne5 Nd7 12. Bd3 Bxd3 13. Nxd3 Nc4 14. O-O Re8 15. Na4 Nd6 16. Qb3 b5 17. Nac5 Nxc5 18. Nxc5 {1-0 (50) Zhao,J (2611)-Li,Y (2435) Tianjin 2018}) 11... Nc4 {[%emt 0:00:03]} 12. Bxc4 {[%emt 0:00:06]} dxc4 {[%emt 0:00:01]} 13. Ne5 {[%emt 0:00:04]} Nd5 {[%emt 0:00:32]} 14. Nxc4 {[%emt 0:00:05]} Nxc3 {[%emt 0:00:06]} 15. bxc3 {[%emt 0:00:05]} (15. Rxc3 $11 {remains equal.} Bb4 16. O-O) 15... Qd5 $17 {[%emt 0:00:02][%csl LRc4,LRg2]} 16. Qe2 {[%emt 0:00:27]} (16. Ne5 $142) 16... Qxg2 {[%emt 0:00:03] Black is more active.} 17. Kd2 {[%emt 0:00:03][%cal Oe3e4] [#]} Qd5 {[%emt 0:00:13] Against e4} 18. f3 {[%emt 0:00:10] aiming for e4.} Be6 {[%emt 0:00:03] This pair of bishops is nice.} 19. Ne5 {[%emt 0:00:19]} Qxa2+ {[%emt 0:00:03]} 20. Rc2 {[%emt 0:00:07]} Qa5 {[%emt 0:00:19]} (20... Qa3 $19 {is more deadly. Hoping for ...c5.} 21. Rg1 g6) 21. Rg1 {[%emt 0:00:02]} (21. Rb1 $17) 21... Bf5 {[%emt 0:00:29]} ({Better is} 21... Rfd8 $19 {Strongly threatening ...f6.} 22. Rb2 (22. Qg2 $2 g6 $17) 22... Bf6) 22. e4 $15 {[%emt 0:00:04] [#] Against f6} Bg6 {[%emt 0:00:13]} (22... Rfd8 $1 $15 23. Ke3 (23. exf5 Rxd4+ 24. Ke3 Rd5 $17) 23... Be6) 23. h4 {[%emt 0:00:22]} (23. Rb1 $11) 23... Rfd8 {[%emt 0:00:04]} (23... Rad8 $17 24. Ke3 Qa3) 24. Be3 {[%emt 0:00:06][%mdl 8192] White does not recover from this.} Qxe5 $19 {[%emt 0:00:05] Black is clearly winning.} 25. Qg2 {[%emt 0:00:30]} Bxh4 {[%emt 0:00:13]} 26. Rb2 {[%emt 0:00:07]} b5 {[%emt 0:00:04]} 27. Kc1 {[%emt 0:00:02]} Qe6 {[%emt 0:00:08] Weighted Error Value: White=0.56/Black=0.29 (precise)} 0-1